bitfinex-derivatives/quotes_SOLF0:USTF0_20250312
["timestamp","ask_amount","ask_price","bid_price","bid_amount"]
[1741795383249,8.09016238,124.5,124.48,0.05775767]
[1741795383446,0.05616238,124.5,124.48,0.05775767]
[1741795383646,8.09026238,124.5,124.48,0.05775767]
[1741795383848,0.05616238,124.5,124.48,0.05775767]
[1741795384247,8.0342,124.49,124.48,0.05775767]
[1741795385252,8.09006238,124.5,124.48,0.05775767]
[1741795385551,0.05616238,124.5,124.48,0.05775767]
[1741795386248,8.0342,124.49,124.48,0.05775767]
[1741795386852,0.05616238,124.5,124.48,0.05775767]
[1741795387949,8.0342,124.49,124.48,0.05775767]
[1741795388743,0.05616238,124.5,124.42,33.48657921]
[1741795388947,3.9842,124.5,124.42,33.48657921]
[1741795389349,8.0369,124.45,124.42,33.48657921]
[1741795389655,3.9842,124.5,124.42,33.48657921]
[1741795389845,8.0353,124.48,124.42,33.48657921]
[1741795390043,0.06153171,124.47,124.45,0.05945386]
[1741795390448,8.09703171,124.47,124.45,0.05945386]
[1741795390649,0.06153171,124.47,124.45,0.05945386]
[1741795391151,8.0361,124.46,124.45,0.05945386]
[1741795391454,0.06153171,124.47,124.45,8.09585386]
[1741795391651,0.06153171,124.47,124.45,0.05945386]
[1741795393053,37.62153171,124.47,124.45,0.05945386]
[1741795393256,8.0361,124.46,124.45,0.05945386]
[1741795393453,37.62153171,124.47,124.45,0.05945386]
[1741795393645,37.62153171,124.47,124.45,8.09605386]
[1741795393849,37.62153171,124.47,124.45,0.05945386]
[1741795394255,8.0361,124.46,124.45,0.05945386]
[1741795394456,37.62153171,124.47,124.45,0.05945386]
[1741795395556,45.65763171,124.47,124.45,0.05945386]
[1741795395758,37.62153171,124.47,124.45,0.05945386]
[1741795396159,37.62153171,124.47,124.38,33.48657921]
[1741795396361,37.56,124.47,124.38,33.48657921]
[1741795396767,8.0371,124.45,124.38,33.48657921]
[1741795397257,0.05924344,124.43,124.4,0.05529956]
[1741795397860,0.05924344,124.43,124.42,8.0387]
[1741795398060,37.54,124.49,124.42,33.48657921]
[1741795398261,37.54,124.49,124.44,33.48657921]
[1741795398561,8.0351,124.48,124.45,8.0364]
[1741795399159,8.09162609,124.48,124.45,8.08956643]
[1741795399463,0.05652609,124.48,124.45,0.05316643]
[1741795400264,4.43672609,124.48,124.45,0.05316643]
[1741795402461,4.43672609,124.48,124.45,6.643e-05]
[1741795402663,4.43672609,124.48,124.4,8.0396]
[1741795402863,4.3802,124.48,124.38,33.48657921]
[1741795403364,37.86677921,124.48,124.38,33.48657921]
[1741795403566,8.0387,124.42,124.4,8.0399]
[1741795403866,8.0387,124.42,124.4,8.09283781]
[1741795404167,37.54,124.43,124.4,8.09283781]
[1741795404168,37.54,124.43,124.4,0.05293781]
[1741795404567,8.0416,124.38,124.35,4.1813]
[1741795404964,4.3083,124.42,124.34,33.48657921]
[1741795405663,8.0411,124.39,124.36,8.0423]
[1741795405864,0.05246974,124.39,124.37,0.0569999]
[1741795407272,0.05246974,124.39,124.38,8.0413]
[1741795407772,37.54,124.43,124.42,8.0387]
[1741795407975,41.6398,124.46,124.38,46.09447921]
[1741795408270,37.54,124.46,124.44,8.0373]
[1741795408670,37.54,124.46,124.4,33.48657921]
[1741795408973,8.0351,124.48,124.44,8.0371]
[1741795409271,41.6455,124.49,124.44,8.0371]
[1741795409474,8.09112318,124.47,124.45,0.05679778]
[1741795409969,0.05532318,124.47,124.45,0.05679778]
[1741795410161,0.05532318,124.47,124.45,8.09349778]
[1741795410474,0.05532318,124.47,124.45,0.05679778]
[1741795410772,0.05532318,124.47,124.46,8.0361]
[1741795411973,0.05532318,124.47,124.46,41.52267921]
[1741795413067,37.52,124.51,124.49,8.0338]
[1741795413265,37.52,124.51,124.46,37.47667921]
[1741795413463,12.6227,124.55,124.51,8.0328]
[1741795413671,12.6227,124.55,124.46,45.90117921]
[1741795413672,37.52,124.55,124.48,33.48657921]
[1741795413870,45.5506,124.55,124.48,33.48657921]
[1741795414169,0.05457524,124.53,124.5,33.54148907]
[1741795414370,0.05457524,124.53,124.5,33.48657921]
[1741795414566,0.05457524,124.53,124.51,8.0329]
[1741795414880,0.05457524,124.53,124.5,0.05086727]
[1741795415466,37.57457524,124.53,124.5,0.05086727]
[1741795415972,8.0329,124.51,124.5,0.05086727]
[1741795416167,37.57457524,124.53,124.43,8.2364]
[1741795416372,41.65427921,124.52,124.43,4.0236]
[1741795417176,8.0362,124.46,124.43,4.0236]
[1741795417581,37.5,124.48,124.43,4.07595574]
[1741795417773,0.05842952,124.46,124.43,4.07595574]
[1741795417974,0.05842952,124.46,124.43,12.11385574]
[1741795418172,0.05842952,124.46,124.43,4.07595574]
[1741795418580,0.05842952,124.46,124.43,0.05235574]
[1741795419569,0.05842952,124.46,124.43,8.09005574]
[1741795419776,0.05842952,124.46,124.44,33.48657921]
[1741795420778,0.05842952,124.46,124.45,8.0368]
[1741795420982,0.05842952,124.46,124.44,33.48657921]
[1741795421279,8.0339,124.5,124.46,8.0357]
[1741795421490,37.5,124.49,124.42,4.3059]
[1741795421783,8.0377,124.44,124.42,4.3059]
[1741795422080,8.0377,124.44,124.4,37.69937921]
[1741795422381,0.05445644,124.43,124.41,0.05347036]
[1741795425182,0.05445644,124.43,124.42,8.0387]
[1741795425381,0.05445644,124.43,124.42,41.52527921]
[1741795425785,0.05445644,124.43,124.41,8.09267036]
[1741795425982,0.05445644,124.43,124.41,0.05347036]
[1741795426188,8.0353,124.48,124.42,33.48657921]
[1741795426492,37.5,124.49,124.42,41.52497921]
[1741795426689,8.0363,124.46,124.42,41.52497921]
[1741795427283,0.0504231,124.45,124.43,0.05474944]
[1741795428676,8.0875231,124.45,124.43,0.05474944]
[1741795428876,0.0504231,124.45,124.43,0.05474944]
[1741795429486,8.0875231,124.45,124.43,0.05474944]
[1741795429992,8.0374,124.44,124.43,0.05474944]
[1741795434086,8.0374,124.44,124.43,4.944e-05]
[1741795437090,12.0738,124.44,124.43,4.944e-05]
[1741795437286,20.1138,124.44,124.43,4.944e-05]
[1741795437899,45.56297921,124.44,124.35,4.315]
[1741795438099,37.52297921,124.44,124.35,12.3577]
[1741795438290,37.52297921,124.44,124.35,4.315]
[1741795438485,8.0429,124.36,124.34,4.1732]
[1741795438994,0.0602219,124.36,124.34,4.23315208]
[1741795439602,0.0602219,124.36,124.35,8.0427]
[1741795439797,0.0602219,124.36,124.34,0.05995208]
[1741795440002,37.48,124.35,124.34,0.05995208]
[1741795440308,37.48,124.35,124.29,3.9659]
[1741795440707,37.48,124.35,124.29,12.0127]
[1741795441006,37.48,124.35,124.29,3.9659]
[1741795441396,0.05177283,124.33,124.31,0.05335376]
[1741795444108,0.05177283,124.33,124.31,8.09885376]
[1741795444302,0.05177283,124.33,124.31,0.05335376]
[1741795444608,45.5218,124.38,124.34,8.0435]
[1741795444910,46.10207921,124.42,124.32,33.48657921]
[1741795445114,37.48,124.41,124.32,33.48657921]
[1741795445306,37.48,124.41,124.34,33.48657921]
[1741795445605,37.48,124.41,124.36,33.48657921]
[1741795445813,0.05616017,124.39,124.38,8.0413]
[1741795446014,0.05616017,124.39,124.36,33.54616243]
[1741795446211,0.05616017,124.39,124.36,0.05958322]
[1741795447411,0.05616017,124.39,124.29,3.9659]
[1741795447611,4.2182,124.39,124.29,3.9659]
[1741795447912,8.0448,124.33,124.29,3.9659]
[1741795448112,33.48657921,124.38,124.29,3.9659]
[1741795448113,37.48,124.34,124.29,3.9659]
[1741795448415,0.05297065,124.33,124.3,8.10169885]
[1741795449109,0.05297065,124.33,124.3,0.05579885]
[1741795449412,8.09777065,124.33,124.3,8.10219885]
[1741795449611,0.05297065,124.33,124.3,0.05579885]
[1741795451209,8.09777065,124.33,124.3,0.05579885]
[1741795451416,0.05297065,124.33,124.3,0.05579885]
[1741795452112,8.0455,124.32,124.3,0.05579885]
[1741795452308,0.05297065,124.33,124.3,8.10189885]
[1741795452613,8.09767065,124.33,124.3,0.05579885]
[1741795453114,8.09767065,124.33,124.3,8.10179885]
[1741795453317,0.05297065,124.33,124.3,0.05579885]
[1741795454621,0.05297065,124.33,124.32,8.0452]
[1741795454917,4.2182,124.39,124.32,8.0452]
[1741795454918,8.0422,124.37,124.32,33.48657921]
[1741795455214,4.2182,124.39,124.32,33.48657921]
[1741795455413,89.95031924,124.41,124.34,33.48657921]
[1741795455607,81.91071924,124.41,124.39,8.0401]
[1741795455812,44.43071924,124.41,124.39,8.0401]
[1741795456013,44.49252993,124.41,124.39,0.05770626]
[1741795456217,0.06181069,124.41,124.4,8.04]
[1741795456416,0.06181069,124.41,124.39,0.05770626]
[1741795456719,0.06181069,124.41,124.39,8.09800626]
[1741795457016,0.06181069,124.41,124.39,0.05770626]
[1741795457318,0.06181069,124.41,124.4,8.04]
[1741795458207,0.06181069,124.41,124.39,0.05770626]
[1741795458410,0.06181069,124.41,124.39,8.09800626]
[1741795458621,0.06181069,124.41,124.39,0.05770626]
[1741795459615,0.06181069,124.41,124.39,8.09770626]
[1741795460416,0.06181069,124.41,124.4,8.04]
[1741795461009,0.06181069,124.41,124.39,8.09790626]
[1741795461212,0.06181069,124.41,124.39,0.05770626]
[1741795461516,0.06181069,124.41,124.4,8.04]
[1741795462313,4.3026,124.47,124.39,4.05300626]
[1741795462511,37.46,124.46,124.42,8.0383]
[1741795462916,8.0371,124.45,124.42,8.0383]
[1741795463120,37.46,124.46,124.42,8.0386]
[1741795463513,8.0374,124.44,124.43,0.05337959]
[1741795463819,0.05426776,124.45,124.43,0.05337959]
[1741795464420,0.05426776,124.45,124.44,8.0374]
[1741795464620,8.0345,124.49,124.43,0.05337959]
[1741795464821,8.0345,124.49,124.46,8.0357]
[1741795465015,37.44,124.5,124.46,8.0357]
[1741795465221,37.44,124.5,124.43,4.2119]
[1741795465719,8.0349,124.48,124.45,8.0365]
[1741795465921,8.0349,124.48,124.45,8.09142672]
[1741795466221,8.0349,124.48,124.45,0.05492672]
[1741795466426,37.44,124.5,124.45,0.05492672]
[1741795466620,44.40745181,124.49,124.45,0.05492672]
[1741795467517,8.0361,124.46,124.45,0.05492672]
[1741795467718,37.44,124.46,124.39,8.0856]
[1741795468021,8.0395,124.41,124.39,8.0856]
[1741795468221,37.44,124.46,124.39,8.0856]
[1741795468913,0.05881263,124.44,124.41,0.0542482]
[1741795469724,8.0383,124.43,124.41,0.0542482]
[1741795470024,0.05881263,124.44,124.41,0.0542482]
[1741795470228,8.0384,124.43,124.41,0.0542482]
[1741795470623,0.05881263,124.44,124.41,0.0542482]
[1741795471426,8.0387,124.42,124.41,0.0542482]
[1741795473027,0.05881263,124.44,124.41,0.0542482]
[1741795473417,8.09671263,124.44,124.41,0.0542482]
[1741795473713,0.05881263,124.44,124.41,0.0542482]
[1741795474119,0.05881263,124.44,124.41,8.0934482]
[1741795474324,0.05881263,124.44,124.41,0.0542482]
[1741795474623,0.05881263,124.44,124.41,8.0932482]
[1741795475126,0.05881263,124.44,124.41,0.0542482]
[1741795475725,8.09641263,124.44,124.41,0.0542482]
[1741795476620,0.05881263,124.44,124.41,0.0542482]
[1741795477028,0.05881263,124.44,124.41,4.0815482]
[1741795477528,57.03875181,124.52,124.42,42.11947921]
[1741795477726,8.0342,124.49,124.46,8.0358]
[1741795478223,57.03875181,124.52,124.44,33.48657921]
[1741795478528,44.40745181,124.52,124.46,33.48657921]
[1741795478728,52.43995181,124.52,124.48,8.0345]
[1741795478928,44.40745181,124.52,124.47,4.08001371]
[1741795479928,44.40745181,124.52,124.5,8.0331]
[1741795480329,44.40745181,124.52,124.5,8.08889399]
[1741795480627,45.4313,124.54,124.5,8.08889399]
[1741795480827,37.4,124.54,124.5,8.08889399]
[1741795481028,8.0319,124.53,124.5,0.05579399]
[1741795481429,37.4,124.54,124.5,8.08899399]
[1741795481630,45.4313,124.54,124.5,8.08899399]
[1741795481830,8.0313,124.54,124.5,0.05579399]
[1741795482038,37.4,124.55,124.5,0.05579399]
[1741795482335,8.032,124.53,124.5,0.05579399]
[1741795482927,37.4,124.55,124.5,0.05579399]
[1741795483123,33.48657921,124.54,124.5,0.05579399]
[1741795483329,4.0568,124.53,124.5,0.05579399]
[1741795483734,8.0329,124.51,124.5,0.05579399]
[1741795483937,45.4129,124.51,124.5,0.05579399]
[1741795484533,37.38,124.51,124.5,0.05579399]
[1741795484928,45.4129,124.51,124.5,0.05579399]
[1741795486533,37.38,124.51,124.5,0.05579399]
[1741795487237,45.4129,124.51,124.5,0.05579399]
[1741795488044,37.38,124.51,124.5,0.05579399]
[1741795490035,8.032,124.53,124.5,8.08879399]
[1741795490230,4.0568,124.56,124.5,8.08879399]
[1741795490442,8.0321,124.53,124.5,8.08879399]
[1741795491043,8.0312,124.54,124.51,8.0323]
[1741795491245,37.36,124.55,124.5,0.05579399]
[1741795491645,8.0329,124.51,124.5,0.05579399]
[1741795496146,8.0325,124.52,124.5,0.05579399]
[1741795496746,8.0325,124.52,124.5,8.08899399]
[1741795496952,45.3714,124.54,124.5,0.05579399]
[1741795497452,8.0306,124.55,124.52,8.0317]
[1741795497652,44.40745181,124.57,124.51,20.9064871]
[1741795497855,44.40745181,124.57,124.52,0.05588251]
[1741795498048,8.0304,124.55,124.52,0.05588251]
[1741795498351,44.40745181,124.57,124.52,0.05588251]
[1741795499553,8.0299,124.56,124.53,8.0313]
[1741795499851,37.34,124.56,124.52,0.05588251]
[1741795500249,44.40745181,124.57,124.52,0.05588251]
[1741795500444,44.40745181,124.57,124.53,20.9064871]
[1741795500655,44.40745181,124.57,124.54,8.0308]
[1741795500957,44.40745181,124.57,124.53,20.9064871]
[1741795501148,44.40745181,124.57,124.55,8.03]
[1741795501553,44.40745181,124.57,124.55,0.05831892]
[1741795501759,44.40745181,124.57,124.55,8.08821892]
[1741795502256,8.0287,124.58,124.55,8.08821892]
[1741795502454,48.44186295,124.6,124.55,0.05831892]
[1741795503154,8.0287,124.58,124.55,0.05831892]
[1741795503356,48.44186295,124.6,124.55,20.96480602]
[1741795503357,11.10186295,124.6,124.55,20.96480602]
[1741795503557,11.10186295,124.6,124.56,8.0293]
[1741795503751,8.0284,124.58,124.55,20.96480602]
[1741795504149,11.10186295,124.6,124.55,0.05831892]
[1741795504344,11.10186295,124.6,124.55,20.96480602]
[1741795504749,19.12926295,124.6,124.55,20.96480602]
[1741795504954,11.10186295,124.6,124.55,20.96480602]
[1741795505558,11.10186295,124.6,124.57,20.9064871]
[1741795505758,44.40745181,124.64,124.59,20.9064871]
[1741795505951,44.40745181,124.64,124.61,20.9064871]
[1741795506259,44.40745181,124.64,124.61,20.95946146]
[1741795506456,44.40745181,124.64,124.61,0.05297436]
[1741795506757,44.40745181,124.64,124.61,20.95946146]
[1741795507148,44.40745181,124.64,124.63,20.9064871]
[1741795507556,44.40745181,124.64,124.63,28.9315871]
[1741795507755,24.57903405,124.64,124.63,28.9315871]
[1741795508250,24.57903405,124.64,124.63,8.0251]
[1741795508455,88.81490363,124.65,124.64,8.0245]
[1741795508655,139.24103985,124.66,124.64,33.36317811]
[1741795508959,6.11479083,124.66,124.65,45.3239]
[1741795509157,142.67591942,124.67,124.65,37.3]
[1741795509356,66.29463711,124.67,124.66,33.36317811]
[1741795509656,44.27702226,124.69,124.66,33.36317811]
[1741795509955,44.27702226,124.69,124.64,274.28317811]
[1741795510263,8.0219,124.68,124.66,0.05299094]
[1741795510760,52.29852226,124.69,124.66,0.05299094]
[1741795511060,44.27702226,124.69,124.66,0.05299094]
[1741795511857,66.29463711,124.73,124.67,274.37987957]
[1741795511858,37.28,124.73,124.67,274.37987957]
[1741795512058,37.28,124.76,124.68,33.36317811]
[1741795512258,8.2818,124.78,124.69,0.05474079]
[1741795512461,45.2963,124.77,124.69,37.28]
[1741795512655,37.28,124.8,124.72,33.41940513]
[1741795512852,37.28,124.8,124.72,33.36317811]
[1741795513058,8.0159,124.78,124.75,0.05945706]
[1741795513459,70.64317811,124.81,124.75,0.05945706]
[1741795513658,8.0168,124.76,124.75,0.05945706]
[1741795513858,8.0168,124.76,124.75,88.09982731]
[1741795514162,8.0161,124.78,124.75,88.09982731]
[1741795514362,70.64317811,124.81,124.75,88.09982731]
[1741795514866,8.0168,124.76,124.75,88.09982731]
[1741795515066,70.64317811,124.81,124.75,88.09982731]
[1741795515360,8.0168,124.76,124.75,0.05945706]
[1741795515759,70.62317811,124.77,124.74,165.52063656]
[1741795515964,8.0174,124.75,124.74,165.52063656]
[1741795516267,8.0174,124.75,124.74,145.82113656]
[1741795516460,8.0187,124.73,124.72,145.82113656]
[1741795516870,0.05652343,124.74,124.72,145.82113656]
[1741795517566,37.24,124.77,124.71,32.96357863]
[1741795518069,8.0191,124.73,124.71,32.96357863]
[1741795518369,37.24,124.78,124.71,32.96357863]
[1741795518868,37.24,124.78,124.69,32.90420606]
[1741795519069,37.24,124.78,124.73,0.05324668]
[1741795519664,33.36317811,124.76,124.73,0.05324668]
[1741795520269,37.24,124.78,124.73,0.05324668]
[1741795520469,70.60317811,124.78,124.73,0.05324668]
[1741795520861,8.0181,124.74,124.73,0.05324668]
[1741795521162,37.24,124.82,124.73,0.05324668]
[1741795521365,33.36317811,124.8,124.72,37.24]
[1741795521667,8.0421,124.79,124.76,0.05465786]
[1741795522272,4.3213,124.81,124.76,0.05465786]
[1741795522471,8.0161,124.77,124.76,0.05465786]
[1741795523867,8.0197,124.72,124.68,137.33995545]
[1741795524069,37.65777811,124.76,124.7,8.0204]
[1741795524273,37.22,124.77,124.68,170.70313356]
[1741795524670,37.65777811,124.8,124.68,170.70313356]
[1741795524877,74.87777811,124.8,124.68,37.48077811]
[1741795525171,0.05594621,124.75,124.73,0.05159211]
[1741795525375,41.5146,124.8,124.73,0.05159211]
[1741795525573,0.05594621,124.75,124.73,0.05159211]
[1741795525773,41.5146,124.8,124.73,0.05159211]
[1741795525974,0.0547167,124.75,124.73,0.05159211]
[1741795526166,4.2946,124.8,124.73,0.05159211]
[1741795526368,0.05594621,124.75,124.73,0.05159211]
[1741795526570,4.2946,124.8,124.73,4.18129211]
[1741795526776,5.93e-05,124.75,124.74,33.36317811]
[1741795527071,4.17,124.84,124.74,82.69067811]
[1741795527276,8.0131,124.82,124.79,8.0146]
[1741795527477,37.2,124.86,124.76,33.36317811]
[1741795528076,37.2,124.86,124.8,0.06091207]
[1741795528275,8.0133,124.82,124.8,0.06091207]
[1741795528568,8.0221,124.88,124.8,0.06091207]
[1741795528770,8.012,124.84,124.8,0.06091207]
[1741795528978,8.0221,124.88,124.78,70.56317811]
[1741795529178,8.0114,124.85,124.83,0.05921537]
[1741795529472,8.0221,124.88,124.83,0.05921537]
[1741795529677,8.0116,124.84,124.83,0.05921537]
[1741795529975,8.0221,124.88,124.83,0.05921537]
[1741795530277,8.0114,124.85,124.83,0.05921537]
[1741795530678,8.0221,124.88,124.83,0.05921537]
[1741795530877,8.0116,124.84,124.83,0.05921537]
[1741795531978,37.18,124.85,124.77,8.0159]
[1741795532182,37.18,124.85,124.76,37.18]
[1741795532678,33.36317811,124.84,124.76,37.18]
[1741795532876,8.0124,124.83,124.8,8.0139]
[1741795533069,0.06032838,124.81,124.79,0.05414387]
[1741795533278,70.54317811,124.87,124.76,70.54317811]
[1741795533472,0.05812809,124.81,124.79,8.06806635]
[1741795533669,70.54317811,124.87,124.76,70.54317811]
[1741795533873,0.05663098,124.81,124.79,0.05951401]
[1741795534078,8.0127,124.83,124.76,70.54317811]
[1741795534273,0.05163003,124.81,124.79,0.05950934]
[1741795534471,0.05163003,124.81,124.8,8.0141]
[1741795535078,33.36317811,124.96,124.8,352.40635622]
[1741795535277,8.4813,124.93,124.85,33.36317811]
[1741795535475,240.48,125.0,124.85,33.36317811]
[1741795535476,37.18,124.98,124.85,70.54317811]
[1741795535677,33.36317811,124.97,124.85,70.54317811]
[1741795535878,33.36317811,124.95,124.85,37.18]
[1741795536080,33.36317811,124.93,124.85,37.18]
[1741795536285,8.4813,124.92,124.9,0.05368199]
[1741795536486,33.36317811,124.91,124.69,323.22235545]
[1741795536781,33.36317811,124.89,124.77,33.36317811]
[1741795536981,33.36317811,124.89,124.79,33.36317811]
[1741795537282,37.16,124.9,124.79,70.52317811]
[1741795537481,37.16,124.9,124.81,33.36317811]
[1741795537684,0.05723112,124.86,124.83,33.41384165]
[1741795537878,0.05723112,124.86,124.84,37.16]
[1741795538182,8.4813,124.92,124.85,33.36317811]
[1741795538575,33.36317811,124.99,124.87,33.36317811]
[1741795538777,16.0026,125.01,124.87,70.52317811]
[1741795538984,41.61077811,124.97,124.87,70.52317811]
[1741795539175,8.2476,124.97,124.91,0.06031972]
[1741795539380,45.4076,124.97,124.91,0.06031972]
[1741795539787,8.005,124.95,124.91,0.06031972]
[1741795539983,45.4076,124.97,124.91,0.06031972]
[1741795540485,8.2476,124.97,124.91,0.06031972]
[1741795540881,8.0045,124.96,124.91,8.06711972]
[1741795541383,8.2476,124.97,124.91,0.06031972]
[1741795541582,37.14,125.02,124.93,33.36317811]
[1741795541777,4.1757,125.01,124.93,33.36317811]
[1741795541976,41.3157,125.01,124.96,0.05301838]
[1741795543083,8.003,124.98,124.96,0.05301838]
[1741795543683,8.0024,124.99,124.96,0.05301838]
[1741795543886,4.1757,125.01,124.96,0.05301838]
[1741795544086,41.2957,125.01,124.96,0.05301838]
[1741795544286,8.0033,124.97,124.96,0.05301838]
[1741795545686,8.0057,124.94,124.89,37.12]
[1741795545883,3.9918,124.96,124.89,37.12]
[1741795546090,4.1757,125.01,124.93,33.36317811]
[1741795546391,4.1757,125.01,124.91,33.36317811]
[1741795546586,41.2957,125.01,124.93,33.36317811]
[1741795546787,0.05888783,124.97,124.95,0.05910012]
[1741795547287,0.05888783,124.97,124.95,8.06330012]
[1741795547585,0.05888783,124.97,124.95,0.05910012]
[1741795547982,8.06258783,124.97,124.95,0.05910012]
[1741795548186,0.05888783,124.97,124.95,0.05910012]
[1741795548996,0.05888783,124.97,124.95,8.06340012]
[1741795549393,8.06218783,124.97,124.95,8.06340012]
[1741795549695,8.06218783,124.97,124.95,0.05910012]
[1741795550291,8.06218783,124.97,124.95,8.06360012]
[1741795550496,8.06218783,124.97,124.95,0.05910012]
[1741795551088,0.05888783,124.97,124.95,0.05910012]
[1741795551498,8.0049,124.95,124.89,240.24]
[1741795551796,37.51567811,125.0,124.89,240.24]
[1741795551997,37.51567811,125.0,124.93,8.0056]
[1741795552189,37.51567811,125.0,124.89,240.24]
[1741795552393,37.51567811,125.0,124.93,8.0055]
[1741795552588,0.05095806,124.98,124.95,0.05095312]
[1741795553496,0.05095806,124.98,124.95,8.05505312]
[1741795553688,8.05405806,124.98,124.95,0.05095312]
[1741795554096,0.05095806,124.98,124.95,8.05525312]
[1741795554298,0.05095806,124.98,124.95,0.05095312]
[1741795555301,8.0033,124.97,124.95,0.05095312]
[1741795555705,0.05095806,124.98,124.95,0.05095312]
[1741795556403,8.004,124.96,124.95,0.05095312]
[1741795556899,37.08,124.97,124.89,277.32]
[1741795557399,37.08,124.97,124.91,8.007]
[1741795557802,37.08,124.97,124.89,277.32]
[1741795558000,37.08,124.97,124.92,0.05805333]
[1741795558308,0.05731226,124.94,124.92,0.05805333]
[1741795558696,0.05731226,124.94,124.84,41.42317811]
[1741795559004,37.48257811,124.96,124.85,37.08]
[1741795559005,37.08,124.93,124.85,37.08]
[1741795559203,8.0083,124.9,124.85,37.08]
[1741795559507,37.08,124.93,124.86,33.36317811]
[1741795559999,0.0561447,124.91,124.88,0.05101043]
[1741795560195,0.0561447,124.91,124.88,33.41418854]
[1741795560401,1.39342129,124.99,124.9,33.36317811]
[1741795560402,8.0036,124.97,124.9,33.36317811]
[1741795560702,8.0036,124.97,124.92,33.36317811]
[1741795561094,33.64879811,125.04,124.93,37.08]
[1741795561293,37.08,125.01,124.93,37.08]
[1741795561499,37.08,125.01,124.95,0.05422879]
[1741795561705,8.05621051,124.98,124.95,0.05422879]
[1741795562297,0.05331051,124.98,124.95,0.05422879]
[1741795563308,8.05641051,124.98,124.95,8.05882879]
[1741795563610,0.05331051,124.98,124.95,0.05422879]
[1741795565103,37.08,124.97,124.95,0.05422879]
[1741795565309,37.08,124.97,124.9,8.0075]
[1741795565505,45.4437,124.97,124.9,8.0075]
[1741795565810,8.0056,124.94,124.9,8.0074]
[1741795566013,45.4437,124.97,124.9,8.0074]
[1741795566213,8.0069,124.92,124.88,37.08]
[1741795566421,0.05325211,124.95,124.87,29.63304425]
[1741795566706,8.0072,124.91,124.89,0.05144125]
[1741795566915,0.05951355,124.92,124.89,0.05144125]
[1741795567810,8.0075,124.91,124.89,0.05144125]
[1741795568012,0.05951355,124.92,124.89,0.05144125]
[1741795569313,8.0072,124.91,124.89,0.05144125]
[1741795569809,8.0078,124.9,124.89,0.05144125]
[1741795572518,0.05951355,124.92,124.89,0.05144125]
[1741795573017,8.06641355,124.92,124.89,0.05144125]
[1741795573207,0.05951355,124.92,124.89,0.05144125]
[1741795573906,0.05951355,124.92,124.89,8.05954125]
[1741795574111,8.06631355,124.92,124.89,8.05954125]
[1741795574520,0.05951355,124.92,124.89,0.05144125]
[1741795574816,8.0078,124.9,124.89,0.05144125]
[1741795575012,0.05951355,124.92,124.89,0.05144125]
[1741795575319,8.0083,124.9,124.84,33.36317811]
[1741795575513,8.0083,124.9,124.87,8.0094]
[1741795575820,37.06,124.92,124.83,240.14]
[1741795576116,4.2978,124.91,124.83,240.14]
[1741795576316,0.05781517,124.89,124.86,0.05420817]
[1741795576718,8.06681517,124.89,124.86,0.05420817]
[1741795577019,0.05781517,124.89,124.86,0.05420817]
[1741795577221,8.06651517,124.89,124.86,0.05420817]
[1741795577518,0.05781517,124.89,124.86,0.05420817]
[1741795577719,0.05781517,124.89,124.87,8.0094]
[1741795577921,8.06631517,124.89,124.86,0.05420817]
[1741795578115,0.05781517,124.89,124.86,8.06420817]
[1741795578509,0.05781517,124.89,124.86,0.05420817]
[1741795578914,8.0094,124.88,124.86,0.05420817]
[1741795579420,8.0094,124.88,124.86,8.06460817]
[1741795579817,8.0097,124.87,124.86,0.05420817]
[1741795581118,45.3784,124.88,124.78,162.11005874]
[1741795581322,45.3784,124.88,124.78,166.40925874]
[1741795581724,33.36317811,124.87,124.75,109.35096953]
[1741795581925,33.36317811,124.85,124.75,109.35096953]
[1741795582230,0.05809433,124.82,124.8,0.05210585]
[1741795582822,8.07129433,124.82,124.8,0.05210585]
[1741795583024,0.05809433,124.82,124.8,0.05210585]
[1741795583820,8.0136,124.81,124.8,0.05210585]
[1741795584226,0.05809433,124.82,124.8,0.05210585]
[1741795585228,0.05809433,124.82,124.8,8.06620585]
[1741795586127,0.05809433,124.82,124.8,0.05210585]
[1741795587230,8.07129433,124.82,124.8,0.05210585]
[1741795587426,0.05809433,124.82,124.8,0.05210585]
[1741795587827,8.0136,124.81,124.8,0.05210585]
[1741795588028,0.05809433,124.82,124.8,0.05210585]
[1741795588428,8.07129433,124.82,124.8,0.05210585]
[1741795588629,0.05809433,124.82,124.8,0.05210585]